fUST/lending_fUST_20250605
["ID","MTS","AMOUNT","RATE_DAILY","PERIOD"]
[364319026,1749067838503,-420.0,0.00020332,2]
[364319027,1749067838512,-804.73,0.00020332,2]
[364319028,1749067838521,-440.0,0.00020332,2]
[364319030,1749067838530,-440.0,0.00020333,2]
[364319032,1749067838540,-440.0,0.00020333,2]
[364319033,1749067838549,-440.0,0.00020333,2]
[364319034,1749067838559,-440.0,0.00020333,2]
[364319035,1749067838567,-430.0,0.00020333,2]
[364319036,1749067838576,-440.0,0.00020333,2]
[364319037,1749067838586,-440.0,0.00020333,2]
[364319038,1749067838598,-440.0,0.00020333,2]
[364319040,1749067838607,-440.0,0.00020333,2]
[364319042,1749067838617,-440.0,0.00020333,2]
[364319044,1749067838626,-440.0,0.00020333,2]
[364319046,1749067838635,-440.0,0.00020333,2]
[364319048,1749067838644,-440.0,0.00020333,2]
[364319050,1749067838653,-440.0,0.00020333,2]
[364319052,1749067838662,-440.0,0.00020334,2]
[364319054,1749067838672,-420.0,0.00020334,2]
[364319056,1749067838681,-390.0,0.00020334,2]
[364319058,1749067838691,-440.0,0.00020334,2]
[364319060,1749067838700,-440.0,0.00020334,2]
[364319062,1749067838709,-410.0,0.00020334,2]
[364319065,1749067838724,-410.0,0.00020334,2]
[364319068,1749067838733,-440.0,0.00020334,2]
[364319071,1749067838742,-1115.99,0.00020334,2]
[364319074,1749067838751,-440.0,0.00020334,2]
[364319076,1749067838761,-400.0,0.00020334,2]
[364319078,1749067838770,-607.25,0.00020334,2]
[364319079,1749067838780,-440.0,0.00020334,2]
[364319080,1749067838790,-1241.63,0.00020334,2]
[364319081,1749067838800,-440.0,0.00020336,2]
[364319082,1749067838810,-803.52,0.00020337,2]
[364319083,1749067838819,-886.93,0.00020337,2]
[364319084,1749067838829,-1134.28,0.00020338,2]
[364319085,1749067838839,-1047.34,0.00020338,2]
[364319086,1749067838848,-474.03,0.00020338,2]
[364319087,1749067838857,-742.29,0.00020338,2]
[364319088,1749067838866,-1592.78,0.00020338,2]
[364319089,1749067838876,-440.0,0.00020338,2]
[364319090,1749067838887,-440.0,0.00020338,2]
[364319091,1749067838896,-360.0,0.00020338,2]
[364319092,1749067838906,-505.55,0.00020338,2]
[364319093,1749067838916,-440.0,0.00020338,2]
[364319094,1749067838926,-440.0,0.00020338,2]
[364319095,1749067838936,-440.0,0.00020338,2]
[364319096,1749067838945,-440.0,0.00020338,2]
[364319097,1749067838955,-440.0,0.00020338,2]
[364319098,1749067838964,-1039.87,0.00020341,2]
[364319099,1749067838973,-1368.04,0.00020341,2]
[364319100,1749067838983,-594.07,0.00020341,2]
[364319101,1749067838993,-396.68944584,0.00020373,2]
[364319102,1749067839002,-500.0,0.00020373,2]
[364319103,1749067839012,-5386.12827659,0.00020417,3]
[364319104,1749067839021,-500.0,0.00020547,2]
[364319105,1749067839030,-5386.12827659,0.0002059,3]
[364319106,1749067839039,-440.0,0.00020606,2]
[364319107,1749067839049,-804.73,0.00020606,2]
[364319108,1749067839058,-440.0,0.00020606,2]
[364319109,1749067839068,-440.0,0.00020607,2]
[364319110,1749067839077,-440.0,0.00020607,2]
[364319111,1749067839088,-440.0,0.00020607,2]
[364319112,1749067839097,-440.0,0.00020607,2]
[364319113,1749067839107,-440.0,0.00020607,2]
[364319114,1749067839116,-543.39521467,0.00020607,2]
[364319115,1749067839126,-440.0,0.00020607,2]
[364319116,1749067839135,-288.45962418,0.00020607,2]
[364319117,1749067839144,-440.0,0.00020607,2]
[364319118,1749067839153,-440.0,0.00020607,2]
[364319119,1749067839163,-440.0,0.00020607,2]
[364319120,1749067839172,-420.0,0.00020607,2]
[364319121,1749067839182,-440.0,0.00020607,2]
[364319122,1749067839191,-409.38179493,0.00020608,2]
[364319123,1749067839201,-440.0,0.00020608,2]
[364319124,1749067839210,-440.0,0.00020608,2]
[364319125,1749067839220,-400.0,0.00020608,2]
[364319126,1749067839229,-1115.99,0.00020608,2]
[364319127,1749067839239,-440.0,0.00020608,2]
[364319128,1749067839248,-607.25,0.00020608,2]
[364319129,1749067839257,-440.0,0.00020608,2]
[364319130,1749067839268,-1241.63,0.00020608,2]
[364319131,1749067839277,-394.16367049,0.0002061,2]
[364319132,1749067839289,-803.52,0.00020611,2]
[364319133,1749067839298,-886.93,0.00020611,2]
[364319134,1749067839308,-1134.28,0.00020612,2]
[364319135,1749067839317,-1047.34,0.00020612,2]
[364319136,1749067839327,-474.03,0.00020612,2]
[364319137,1749067839336,-742.29,0.00020612,2]
[364319138,1749067839346,-1592.78,0.00020612,2]
[364319139,1749067839355,-440.0,0.00020612,2]
[364319140,1749067839365,-440.0,0.00020612,2]
[364319141,1749067839374,-505.55,0.00020612,2]
[364319142,1749067839384,-367.46,0.00020612,2]
[364319143,1749067839393,-440.0,0.00020612,2]
[364319144,1749067839403,-350.0,0.00020612,2]
[364319145,1749067839415,-440.0,0.00020612,2]
[364319146,1749067839424,-440.0,0.00020612,2]
[364319147,1749067839435,-1039.87,0.00020615,2]
[364319148,1749067839444,-1368.04,0.00020615,2]
[364319149,1749067839454,-594.07,0.00020615,2]
[364319150,1749067839463,-500.0,0.00020632,2]
[364319151,1749067839473,-296.69,0.000207,2]
[364319152,1749067839482,-762.92,0.000207,2]
[364319153,1749067839495,-502.25716102,0.00020722,2]
[364319154,1749067839504,-501.61333408,0.00020756,2]
[364319155,1749067839514,-500.60381911,0.00020756,2]
[364319156,1749067839523,-415.975802,0.00020759,2]
[364319157,1749067839535,-5386.12827659,0.00020762,3]
[364319158,1749067839544,-160.0,0.00020788,2]
[364319159,1749067839554,-160.0,0.00020788,2]
[364319160,1749067839564,-212.90465545,0.00020788,2]
[364319161,1749067839573,-229.45591648,0.00020788,2]
[364319162,1749067839583,-842.5625,0.00020788,2]
[364319163,1749067839592,-440.0,0.0002088,2]
[364319164,1749067839602,-804.73,0.0002088,2]
[364319165,1749067839611,-440.0,0.0002088,2]
[364319166,1749067839621,-409.39463629,0.00020881,2]
[364319167,1749067839630,-417.13,0.00020881,2]
[364319168,1749067839640,-440.0,0.00020881,2]
[364319169,1749067839650,-440.0,0.00020881,2]
[364319170,1749067839659,-440.0,0.00020881,2]
[364319171,1749067839667,-440.0,0.00020881,2]
[364319172,1749067839676,-440.0,0.00020881,2]
[364319173,1749067839686,-440.0,0.00020881,2]
[364319174,1749067839695,-440.0,0.00020881,2]
[364319175,1749067839704,-440.0,0.00020881,2]
[364319176,1749067839715,-440.0,0.00020882,2]
[364319177,1749067839724,-167.46617435,0.00020882,2]
[364319178,1749067839833,-272.53382565,0.00020882,2]
[364319179,1749067839843,-1115.99,0.00020882,2]
[364319180,1749067839852,-440.0,0.00020882,2]
[364319181,1749067839861,-477.95812979,0.00020882,2]
[364319182,1749067839873,-129.29187021,0.00020882,2]
[364319183,1749067839882,-440.0,0.00020882,2]
[364319184,1749067839892,-1241.63,0.00020882,2]
[364319185,1749067839902,-697.31573714,0.00020885,2]
[364319186,1749067840142,-625.73001756,0.00019685,2]
[364319187,1749067840151,-92.39119073,0.00020337,2]
[364319188,1749067840162,-347.60880927,0.00020337,2]
[364319190,1749067840172,-625.73001752,0.0002044,2]
[364319192,1749067840182,-471.68,0.00020611,2]
[364319193,1749067840191,-106.20426286,0.00020885,2]
[364319194,1749067840203,-886.93,0.00020885,2]
[364319195,1749067840213,-1134.28,0.00020886,2]
[364319196,1749067840224,-1047.34,0.00020886,2]
[364319197,1749067840235,-474.03,0.00020886,2]
[364319198,1749067840246,-742.29,0.00020886,2]
[364319199,1749067840256,-1592.78,0.00020886,2]
[364319200,1749067840266,-440.0,0.00020886,2]
[364319201,1749067840275,-483.21836005,0.00020886,2]
[364319202,1749067840286,-505.55,0.00020886,2]
[364319203,1749067840296,-440.0,0.00020886,2]
[364319204,1749067840305,-440.0,0.00020886,2]
[364319205,1749067840314,-440.0,0.00020886,2]
[364319206,1749067840324,-1368.04,0.00020889,2]
[364319207,1749067840333,-594.07,0.00020889,2]
[364319208,1749067840343,-5386.12827659,0.00020934,4]
[364319209,1749067840354,-400.0,0.00021095,2]
[364319210,1749067840363,-400.0,0.00021095,2]
[364319211,1749067840372,-400.0,0.00021095,2]
[364319213,1749067840382,-400.0,0.00021095,2]
[364319215,1749067840392,-400.0,0.00021095,2]
[364319216,1749067840403,-400.0,0.00021095,2]
[364319217,1749067840413,-400.0,0.00021095,2]
[364319218,1749067840424,-400.0,0.00021095,2]
[364319219,1749067840434,-400.0,0.00021095,2]
[364319220,1749067840443,-400.0,0.00021095,2]
[364319221,1749067840454,-500.0,0.00021095,3]
[364319222,1749067840463,-5386.12827659,0.00021107,4]
[364319223,1749067840472,-333.5,0.00021146,3]
[364319225,1749067840482,-2667.92,0.00021148,3]
[364319227,1749067840490,-1333.96,0.00021148,3]
[364319229,1749067840500,-666.98,0.00021148,3]
[364319231,1749067840509,-440.0,0.00021154,2]
[364319233,1749067840519,-804.73,0.00021154,2]
[364319235,1749067840528,-440.0,0.00021154,2]
[364319237,1749067840538,-440.0,0.00021155,2]
[364319239,1749067840547,-440.0,0.00021155,2]
[364319241,1749067840556,-440.0,0.00021155,2]
[364319243,1749067840565,-440.0,0.00021155,2]
[364319245,1749067840575,-440.0,0.00021155,2]
[364319246,1749067840585,-440.0,0.00021155,2]
[364319248,1749067840595,-440.0,0.00021155,2]
[364319250,1749067840605,-440.0,0.00021155,2]
[364319252,1749067840615,-380.0,0.00021156,2]
[364319254,1749067840624,-390.0,0.00021156,2]
[364319256,1749067840633,-1115.99,0.00021156,2]
[364319258,1749067840642,-440.0,0.00021156,2]
[364319260,1749067840652,-607.25,0.00021156,2]
[364319262,1749067840663,-440.0,0.00021156,2]
[364319264,1749067840672,-1241.63,0.00021156,2]
[364319266,1749067840682,-803.52,0.00021159,2]
[364319268,1749067840692,-886.93,0.00021159,2]
[364319270,1749067840701,-400.0,0.0002116,2]
[364319272,1749067840710,-1134.28,0.0002116,2]
[364319274,1749067840722,-1047.34,0.0002116,2]
[364319276,1749067840731,-474.03,0.0002116,2]
[364319278,1749067840741,-742.29,0.0002116,2]
[364319280,1749067840750,-1592.78,0.0002116,2]
[364319282,1749067840761,-440.0,0.0002116,2]
[364319284,1749067840770,-505.55,0.0002116,2]
[364319286,1749067840779,-440.0,0.0002116,2]
[364319288,1749067840791,-440.0,0.0002116,2]
[364319290,1749067840800,-440.0,0.0002116,2]
[364319292,1749067840810,-1368.04,0.00021163,2]
[364319294,1749067840819,-594.07,0.00021163,2]
[364319296,1749067840829,-1500.0,0.00021164,2]
[364319298,1749067840839,-163.8376925,0.00021204,2]
[364319300,1749067840848,-5386.12827659,0.00021279,5]
[364319301,1749067840857,-440.0,0.00021428,2]
[364319303,1749067840866,-804.73,0.00021428,2]
[364319305,1749067840875,-440.0,0.00021428,2]
[364319307,1749067840884,-440.0,0.00021429,2]
[364319309,1749067840893,-500.16,0.00021429,2]
[364319311,1749067840902,-440.0,0.00021429,2]
[364319313,1749067840912,-440.0,0.00021429,2]
[364319315,1749067840922,-390.0,0.00021429,2]
[364319316,1749067840931,-390.0,0.00021429,2]
[364319317,1749067840941,-390.0,0.00021429,2]
[364319318,1749067840951,-440.0,0.00021429,2]
[364319319,1749067840960,-1115.99,0.0002143,2]
[364319321,1749067840969,-440.0,0.0002143,2]
[364319322,1749067840978,-607.25,0.0002143,2]
[364319324,1749067840987,-440.0,0.0002143,2]
[364319326,1749067840997,-1241.63,0.0002143,2]
[364319328,1749067841006,-803.52,0.00021433,2]
[364319330,1749067841015,-886.93,0.00021433,2]
[364319332,1749067841024,-400.0,0.00021434,2]
[364319334,1749067841034,-1134.28,0.00021434,2]
[364319336,1749067841045,-1047.34,0.00021434,2]
[364319338,1749067841054,-474.03,0.00021434,2]
[364319340,1749067841064,-742.29,0.00021434,2]
[364319341,1749067841073,-1592.78,0.00021434,2]
[364319342,1749067841082,-440.0,0.00021434,2]
[364319343,1749067841092,-505.55,0.00021434,2]
[364319345,1749067841101,-440.0,0.00021434,2]
[364319347,1749067841110,-440.0,0.00021434,2]
[364319349,1749067841119,-440.0,0.00021434,2]
[364319351,1749067841129,-1368.04,0.00021437,2]
[364319353,1749067841138,-594.07,0.00021437,2]
[364319354,1749067841147,-5386.12827659,0.00021452,5]
[364319356,1749067841156,-151.0,0.00021611,2]
[364319358,1749067841166,-151.0,0.00021611,2]
[364319360,1749067841175,-5386.12827659,0.00021624,5]
[364319362,1749067841184,-229.96569739,0.00021638,2]
[364319363,1749067841193,-151.0,0.00021638,2]
[364319365,1749067841202,-151.0,0.00021666,2]
[364319367,1749067841212,-56811.17,0.000217,2]
[364319369,1749067841222,-440.0,0.00021702,2]
[364319371,1749067841231,-804.73,0.00021702,2]
[364319373,1749067841240,-440.0,0.00021702,2]
[364319375,1749067841249,-440.0,0.00021703,2]
[364319377,1749067841259,-440.0,0.00021703,2]
[364319379,1749067841268,-440.0,0.00021703,2]
[364319381,1749067841278,-440.0,0.00021703,2]
[364319383,1749067841288,-1115.99,0.00021704,2]
[364319385,1749067841297,-440.0,0.00021704,2]
[364319387,1749067841306,-607.25,0.00021704,2]
[364319389,1749067841316,-440.0,0.00021704,2]
[364319391,1749067841327,-1241.63,0.00021704,2]
[364319393,1749067841337,-803.52,0.00021707,2]
[364319395,1749067841346,-886.93,0.00021707,2]
[364319397,1749067841356,-400.0,0.00021708,2]
[364319398,1749067841365,-1134.28,0.00021708,2]
[364319399,1749067841375,-1047.34,0.00021708,2]
[364319400,1749067841384,-474.03,0.00021708,2]
[364319401,1749067841393,-742.29,0.00021708,2]
[364319402,1749067841402,-1592.78,0.00021708,2]
[364319403,1749067841411,-259.14606412,0.00021708,2]
[364319404,1749067841420,-505.55,0.00021708,2]
[364319405,1749067841429,-440.0,0.00021708,2]
[364319406,1749067841439,-440.0,0.00021708,2]
[364319407,1749067841449,-526.7,0.00021708,2]
[364319408,1749067841459,-1368.04,0.00021711,2]
[364319409,1749067841468,-594.07,0.00021711,2]
[364319410,1749067841477,-5386.12827659,0.00021797,6]
[364319411,1749067841487,-328.0,0.0002191,2]
[364319412,1749067841496,-194.74946039,0.00021917,2]
[364319414,1749067841505,-500.0,0.00021917,2]
[364319416,1749067841515,-5386.12827659,0.00021969,6]
[364319418,1749067841524,-440.0,0.00021976,2]
[364319420,1749067841534,-804.73,0.00021976,2]
[364319422,1749067841544,-440.0,0.00021976,2]
[364319423,1749067841553,-440.0,0.00021977,2]
[364319425,1749067841562,-174.33,0.00021977,2]
[364319427,1749067841571,-163.32,0.00021977,2]
[364319429,1749067841580,-440.0,0.00021977,2]
[364319431,1749067841590,-1115.99,0.00021978,2]
[364319433,1749067841599,-440.0,0.00021978,2]
[364319435,1749067841608,-607.25,0.00021978,2]
[364319437,1749067841617,-289.52,0.00021978,2]
[364319439,1749067841627,-1241.63,0.00021978,2]
[364319441,1749067841637,-803.52,0.00021981,2]
[364319443,1749067841646,-886.93,0.00021981,2]
[364319445,1749067841655,-400.0,0.00021982,2]
[364319446,1749067841665,-1134.28,0.00021982,2]
[364319448,1749067841674,-1047.34,0.00021982,2]
[364319450,1749067841684,-474.03,0.00021982,2]
[364319452,1749067841693,-742.29,0.00021982,2]
[364319454,1749067841703,-1592.78,0.00021982,2]
[364319456,1749067841714,-505.55,0.00021982,2]
[364319458,1749067841725,-440.0,0.00021982,2]
[364319460,1749067841734,-440.0,0.00021982,2]
[364319462,1749067841743,-1368.04,0.00021985,2]
[364319464,1749067841752,-594.07,0.00021985,2]
[364319466,1749067841763,-3000.0,0.00022,2]
[364319468,1749067841772,-762.92,0.00022,7]
[364319470,1749067841782,-83344.09,0.00022,7]
[364319472,1749067841792,-3000.0,0.0002201,2]
[364319474,1749067841802,-3000.0,0.0002202,2]
[364319476,1749067841813,-3000.0,0.0002203,2]
[364319478,1749067841823,-3000.0,0.0002204,2]
[364319480,1749067841832,-3000.0,0.0002205,2]
[364319482,1749067841841,-3000.0,0.0002206,2]
[364319483,1749067841851,-3000.0,0.0002207,2]
[364319485,1749067841860,-3000.0,0.0002208,2]
[364319487,1749067841869,-3000.0,0.0002209,2]
[364319489,1749067841880,-3000.0,0.000221,2]
[364319491,1749067841890,-3000.0,0.0002211,2]
[364319493,1749067841900,-207.4,0.00022119,2]
[364319495,1749067841910,-500.0,0.00022119,2]
[364319498,1749067841920,-500.0,0.00022119,2]
[364319500,1749067841930,-500.0,0.00022119,2]
[364319501,1749067841939,-500.0,0.00022119,2]
[364319503,1749067841948,-500.0,0.00022119,2]
[364319505,1749067841958,-500.0,0.00022119,2]
[364319507,1749067841968,-500.0,0.00022119,2]
[364319509,1749067841977,-500.0,0.00022119,2]
[364319511,1749067841986,-500.0,0.00022119,2]
[364319513,1749067841996,-500.0,0.00022119,2]
[364319515,1749067842005,-500.0,0.00022119,2]
[364319517,1749067842015,-500.0,0.00022119,2]
[364319519,1749067842024,-5000.0,0.00022119,2]
[364319521,1749067842034,-500.0,0.00022119,2]
[364319523,1749067842048,-631.73994074,0.00022119,2]
[364319525,1749067842057,-3000.0,0.0002212,2]
[364319527,1749067842066,-3000.0,0.0002213,2]
[364319529,1749067842076,-3000.0,0.0002214,2]
[364319530,1749067842085,-5386.12827659,0.00022141,6]
[364319532,1749067842095,-3000.0,0.0002215,2]
[364319534,1749067842105,-3000.0,0.0002216,2]
[364319536,1749067842115,-3000.0,0.0002217,2]
[364319538,1749067842124,-3000.0,0.0002218,2]
[364319540,1749067842133,-3000.0,0.0002219,2]
[364319542,1749067842142,-3000.0,0.000222,2]
[364319544,1749067842151,-296.69,0.000222,7]
[364319546,1749067842161,-3000.0,0.0002221,2]
[364319548,1749067842171,-3000.0,0.0002222,2]
[364319549,1749067842180,-3000.0,0.0002223,2]
[364319551,1749067842189,-3000.0,0.0002224,2]
[364319553,1749067842199,-3000.0,0.0002225,2]
[364319554,1749067842207,-440.0,0.0002225,2]
[364319555,1749067842216,-804.73,0.0002225,2]
[364319556,1749067842225,-440.0,0.0002225,2]
[364319557,1749067842234,-440.0,0.00022251,2]
[364319558,1749067842243,-440.0,0.00022251,2]
[364319559,1749067842252,-1115.99,0.00022252,2]
[364319560,1749067842261,-184.32,0.00022252,2]
[364319561,1749067842269,-607.25,0.00022252,2]
[364319562,1749067842278,-1241.63,0.00022252,2]
[364319563,1749067842288,-803.52,0.00022255,2]
[364319564,1749067842297,-886.93,0.00022255,2]
[364319565,1749067842306,-400.0,0.00022256,2]
[364319566,1749067842315,-1134.28,0.00022256,2]
[364319567,1749067842324,-1047.34,0.00022256,2]
[364319568,1749067842332,-474.03,0.00022256,2]
[364319569,1749067842341,-742.29,0.00022256,2]
[364319570,1749067842350,-1592.78,0.00022256,2]
[364319571,1749067842359,-505.55,0.00022256,2]
[364319572,1749067842368,-440.0,0.00022256,2]
[364319573,1749067842376,-440.0,0.00022256,2]
[364319574,1749067842385,-1368.04,0.00022259,2]
[364319575,1749067842394,-594.07,0.00022259,2]
[364319576,1749067842403,-3000.0,0.0002226,2]
[364319577,1749067842412,-1500.0,0.0002226,2]
[364319578,1749067842421,-3000.0,0.0002227,2]
[364319579,1749067842430,-3000.0,0.0002228,2]
[364319580,1749067842439,-3000.0,0.0002229,2]
[364319581,1749067842448,-3000.0,0.000223,2]
[364319582,1749067842457,-3000.0,0.0002231,2]
[364319583,1749067842558,-5386.12827659,0.00022314,7]
[364319584,1749067842567,-4507.970417,0.0002232,2]
[364319585,1749067842576,-500.0,0.00022465,2]
[364319586,1749067842585,-5386.12827659,0.00022486,7]
[364319587,1749067842594,-440.0,0.00022524,2]
[364319588,1749067842603,-804.73,0.00022524,2]
[364319589,1749067842611,-525.01,0.00022524,2]
[364319590,1749067842620,-440.0,0.00022525,2]
[364319591,1749067842629,-440.0,0.00022525,2]
[364319592,1749067842638,-1115.99,0.00022526,2]
[364319593,1749067842647,-607.25,0.00022526,2]
[364319594,1749067842656,-1241.63,0.00022526,2]
[364319596,1749067842666,-803.52,0.00022529,2]
[364319598,1749067842676,-886.93,0.00022529,2]
[364319600,1749067842685,-400.0,0.0002253,2]
[364319602,1749067842695,-1134.28,0.0002253,2]
[364319604,1749067842704,-1047.34,0.0002253,2]
[364319606,1749067842715,-474.03,0.0002253,2]
[364319608,1749067842725,-742.29,0.0002253,2]
[364319610,1749067842735,-1592.78,0.0002253,2]
[364319612,1749067842745,-505.55,0.0002253,2]
[364319614,1749067842755,-440.0,0.0002253,2]
[364319616,1749067842765,-440.0,0.0002253,2]
[364319618,1749067842774,-1368.04,0.00022533,2]
[364319620,1749067842783,-594.07,0.00022533,2]
[364319622,1749067842793,-5386.12827659,0.00022659,7]
[364319623,1749067842803,-5000.0,0.00022667,2]
[364319625,1749067842812,-12500.0,0.00022704,3]
[364319627,1749067842821,-12500.0,0.00022713,3]
[364319629,1749067842831,-12500.0,0.00022721,3]
[364319631,1749067842840,-12500.0,0.0002273,3]
[364319633,1749067842849,-151.0,0.00022739,7]
[364319635,1749067842859,-12500.0,0.00022739,3]
[364319637,1749067842867,-440.0,0.00022798,2]
[364319639,1749067842877,-804.73,0.00022798,2]
[364319641,1749067842887,-440.0,0.00022799,2]
[364319643,1749067842896,-440.0,0.00022799,2]
[364319645,1749067842906,-1115.99,0.000228,2]
[364319647,1749067842915,-607.25,0.000228,2]
[364319649,1749067842925,-1241.63,0.000228,2]
[364319651,1749067842934,-56811.17,0.000228,2]
[364319653,1749067842943,-803.52,0.00022803,2]
[364319655,1749067842952,-886.93,0.00022803,2]
[364319657,1749067842962,-400.0,0.00022804,2]
[364319659,1749067842971,-1134.28,0.00022804,2]
[364319661,1749067842981,-1047.34,0.00022804,2]
[364319663,1749067842991,-474.03,0.00022804,2]
[364319665,1749067843004,-742.29,0.00022804,2]
[364319667,1749067843013,-1592.78,0.00022804,2]
[364319669,1749067843023,-505.55,0.00022804,2]
[364319671,1749067843034,-440.0,0.00022804,2]
[364319673,1749067843043,-440.0,0.00022804,2]
[364319675,1749067843052,-1368.04,0.00022807,2]
[364319677,1749067843062,-594.07,0.00022807,2]
[364319679,1749067843072,-5386.12827659,0.00022831,8]
[364319681,1749067843082,-151.0,0.00023,10]
[364319684,1749067843091,-83344.09,0.00023,7]
[364319685,1749067843100,-160.0,0.00023,3]
[364319688,1749067843110,-151.0,0.00023,7]
[364319690,1749067843122,-173.0,0.00023,7]
[364319692,1749067843131,-5386.12827659,0.00023003,8]
[364319694,1749067843141,-500.0,0.00023013,2]
[364319696,1749067843150,-440.0,0.00023072,2]
[364319698,1749067843162,-804.73,0.00023072,2]
[364319700,1749067843172,-440.0,0.00023073,2]
[364319702,1749067843181,-440.0,0.00023073,2]
[364319704,1749067843191,-1115.99,0.00023074,2]
[364319706,1749067843200,-607.25,0.00023074,2]
[364319708,1749067843209,-1241.63,0.00023074,2]
[364319709,1749067843218,-803.52,0.00023077,2]
[364319711,1749067843227,-886.93,0.00023077,2]
[364319713,1749067843236,-400.0,0.00023078,2]
[364319715,1749067843245,-1134.28,0.00023078,2]
[364319717,1749067843255,-1047.34,0.00023078,2]
[364319719,1749067843265,-474.03,0.00023078,2]
[364319721,1749067843274,-742.29,0.00023078,2]
[364319723,1749067843283,-1592.78,0.00023078,2]
[364319725,1749067843293,-505.55,0.00023078,2]
[364319727,1749067843302,-440.0,0.00023078,2]
[364319729,1749067843311,-440.0,0.00023078,2]
[364319731,1749067843320,-1368.04,0.00023081,2]
[364319733,1749067843330,-594.07,0.00023081,2]
[364319735,1749067843339,-5386.12827659,0.00023176,8]
[364319737,1749067843349,-762.92,0.000232,7]
[364319739,1749067843358,-364.5816698,0.00023205,2]
[364319741,1749067843368,-364.5816698,0.00023205,2]
[364319743,1749067843378,-364.5816698,0.00023205,2]
[364319745,1749067843386,-364.5816698,0.00023205,2]
[364319747,1749067843396,-364.5816698,0.00023205,2]
[364319749,1749067843406,-786.3871931,0.00023205,2]
[364319751,1749067843415,-364.4406513,0.00023205,2]
[364319753,1749067843424,-5000.0,0.00023215,2]
[364319755,1749067843433,-200.0,0.00023287,2]
[364319757,1749067843442,-200.0,0.00023287,2]
[364319759,1749067843451,-200.0,0.00023287,2]
[364319761,1749067843460,-200.0,0.00023287,2]
[364319763,1749067843469,-200.0,0.00023287,2]
[364319765,1749067843479,-200.0,0.00023287,2]
[364319767,1749067843489,-200.0,0.00023287,2]
[364319769,1749067843498,-200.0,0.00023287,2]
[364319771,1749067843508,-200.0,0.00023287,2]
[364319773,1749067843517,-200.0,0.00023287,2]
[364319775,1749067843526,-200.0,0.00023287,2]
[364319776,1749067843536,-200.0,0.00023287,2]
[364319778,1749067843546,-200.0,0.00023287,2]
[364319780,1749067843555,-158.401731,0.000233,3]
[364319782,1749067843565,-153.0,0.00023342,2]
[364319784,1749067843576,-423.8437063,0.00023342,2]
[364319786,1749067843584,-160.2722929,0.00023342,2]
[364319788,1749067843594,-176.5287595,0.00023342,2]
[364319790,1749067843603,-572.502888,0.00023342,2]
[364319792,1749067843613,-440.0,0.00023346,2]
[364319794,1749067843622,-804.73,0.00023346,2]
[364319796,1749067843631,-440.0,0.00023347,2]
[364319798,1749067843640,-440.0,0.00023347,2]
[364319800,1749067843649,-200.0,0.00023348,2]
[364319802,1749067843659,-1115.99,0.00023348,2]
[364319804,1749067843668,-607.25,0.00023348,2]
[364319806,1749067843678,-1241.63,0.00023348,2]
[364319807,1749067843688,-5386.12827659,0.00023348,9]